bitfinex/quotes_SOLUSD_20220218
["timestamp","ask_amount","ask_price","bid_price","bid_amount"]
[1645207686889,115.554,90.059,89.952,47.657]
[1645207687088,112.6293831,90.059,89.952,47.657]
[1645207687287,110.0,90.057,89.952,47.657]
[1645207687487,110.0,90.055,89.952,47.657]
[1645207687687,5.555,90.056,89.952,47.657]
[1645207687688,110.0,90.053,89.953,54.2933698]
[1645207687889,110.0,90.051,89.953,54.2933698]
[1645207688287,110.0,90.051,89.954,2.6293831]
[1645207688887,16.6741,90.05,89.96,16.6743]
[1645207689090,110.0,90.049,89.96,16.6743]
[1645207689289,110.0,90.047,89.954,2.6293831]
[1645207689491,110.0,90.047,89.953,54.2933698]
[1645207689689,110.0,90.045,89.953,54.2933698]
[1645207689990,110.0,90.043,89.953,54.2933698]
[1645207690190,110.0,90.041,89.953,54.2933698]
[1645207690389,62.71119148,90.04,89.954,110.0]
[1645207690692,46.03549148,90.04,89.953,54.2933698]
[1645207691088,46.03549148,90.04,89.954,2.03202703]
[1645207691491,110.0,90.039,89.96,16.6746]
[1645207691989,110.0,90.039,89.954,2.03202703]
[1645207692188,110.0,90.037,89.954,2.03202703]
[1645207692390,110.0,90.035,89.954,2.03202703]
[1645207692589,110.0,90.033,89.954,2.03202703]
[1645207692792,110.0,90.031,89.954,2.03202703]
[1645207692992,110.0,90.029,89.954,2.03202703]
[1645207693189,110.0,90.025,89.954,2.03202703]
[1645207694191,23.0403,90.039,89.954,112.03202703]
[1645207694396,5.555,90.085,89.956,110.0]
[1645207694692,5.0,90.13,89.955,8.6293831]
[1645207694693,51.9687,90.076,89.97,12.82]
[1645207694894,51.9687,90.076,89.971,24.1994]
[1645207695090,16.6713,90.07,89.98,16.6713]
[1645207695292,110.0,90.069,89.98,16.6713]
[1645207695494,110.0,90.068,89.98,16.6713]
[1645207695695,110.0,90.066,89.971,24.1994]
[1645207695893,110.0,90.064,89.94,12.82]
[1645207696092,110.0,90.062,89.94,12.82]
[1645207696294,110.0,90.06,89.94,12.82]
[1645207696494,110.0,90.058,89.94,12.82]
[1645207696695,110.0,90.037,89.955,52.67304439]
[1645207697094,110.0,90.035,89.92,12.82]
[1645207697293,110.0,90.029,89.9,12.82]
[1645207697494,110.0,90.027,89.892,47.1872]
[1645207697794,110.0,90.009,89.9,16.685]
[1645207697994,155.80477108,90.007,89.922,47.84342979]
[1645207698200,110.0,90.005,89.901,110.0]
[1645207698395,5.556,90.006,89.9,16.685]
[1645207698396,5.556,90.006,89.9,12.82]
[1645207698596,45.80477108,90.007,89.92,12.82]
[1645207699196,45.80477108,90.007,89.953,47.54034678]
[1645207699997,5.556,90.034,89.953,47.54034678]
[1645207700195,16.678,90.04,89.953,47.54034678]
[1645207700398,24.7899,90.049,89.954,112.03202703]
[1645207700699,24.7899,90.049,89.96,12.82]
[1645207700896,53.92734191,90.048,89.96,12.82]
[1645207701096,53.92734191,90.048,89.96,29.4948]
[1645207701498,53.92734191,90.048,89.961,110.0]
[1645207701695,53.92734191,90.048,89.963,110.0]
[1645207701897,29.5929,90.077,89.962,6.0]
[1645207701898,5.555,90.077,89.965,110.0]
[1645207702096,16.9528,90.109,89.981,110.0]
[1645207702097,54.26626859,90.107,89.981,110.0]
[1645207702298,16.6661,90.1,89.983,110.0]
[1645207702499,5.551,90.099,89.985,110.0]
[1645207702697,110.0,90.098,89.987,110.0]
[1645207702997,55.58516797,90.097,90.0,12.82]
[1645207703199,50.03416797,90.097,90.002,40.50078348]
[1645207703399,50.03416797,90.097,90.01,16.6648]
[1645207703599,50.03416797,90.097,90.01,29.4848]
[1645207704800,110.0,90.096,90.01,29.4848]
[1645207705205,50.03416797,90.097,90.01,29.4848]
[1645207705404,50.03416797,90.097,90.011,116.0]
[1645207705600,50.03416797,90.097,90.033,110.0]
[1645207705800,50.03416797,90.097,90.032,50.98533074]
[1645207706004,50.03416797,90.097,90.033,110.0]
[1645207706204,46.6196,90.149,90.032,50.98533074]
[1645207706205,5.551,90.141,90.034,6.0]
[1645207706402,5.55,90.148,90.035,45.9633]
[1645207706605,5.55,90.148,90.05,16.6571]
[1645207706803,5.55,90.148,90.06,12.82]
[1645207707205,52.15166913,90.147,90.061,39.52573931]
[1645207707504,52.15166913,90.147,90.08,16.654]
[1645207707505,5.549,90.146,90.08,16.654]
[1645207707704,52.15166913,90.147,90.081,53.53888932]
[1645207708105,52.15166913,90.147,90.082,2.6293831]
[1645207708306,52.15166913,90.147,90.083,6.0]
[1645207708706,52.15166913,90.147,90.082,6.0]
[1645207709110,52.15166913,90.147,90.1,16.6502]
[1645207709308,52.15166913,90.147,90.101,50.84802593]
[1645207710110,5.547,90.192,90.101,50.84802593]
[1645207710308,5.547,90.192,90.11,16.6456]
[1645207710508,1.51526859,90.202,90.11,16.6456]
[1645207710708,5.545,90.201,90.11,16.6456]
[1645207710909,36.01121936,90.201,90.11,16.6456]
[1645207711111,90.70345713,90.2,90.11,16.6456]
[1645207711509,110.0,90.198,90.11,16.6456]
[1645207711713,36.01121936,90.199,90.09,16.653]
[1645207711714,110.0,90.196,90.09,16.653]
[1645207711907,1.51526859,90.188,90.09,16.653]
[1645207712107,1.51526859,90.181,90.09,16.653]
[1645207712308,110.0,90.179,90.09,16.653]
[1645207712511,43.73379634,90.177,90.091,43.85405888]
[1645207712708,5.547,90.176,90.1,16.6517]
[1645207713107,43.73379634,90.177,90.1,16.6517]
[1645207714109,5.547,90.176,90.091,43.85405888]
[1645207714311,5.547,90.176,90.08,16.6546]
[1645207714509,23.78966282,90.176,90.08,16.6546]
[1645207714711,130.87204592,90.175,90.08,16.6546]
[1645207714909,110.0,90.173,90.08,16.6546]
[1645207715110,5.547,90.172,90.08,16.6546]
[1645207715310,5.547,90.174,90.08,16.6546]
[1645207715510,5.547,90.174,90.081,42.82221275]
[1645207715710,110.0,90.173,90.081,42.82221275]
[1645207715910,5.547,90.172,90.081,42.82221275]
[1645207716111,5.547,90.174,90.081,42.82221275]
[1645207716310,16.6558,90.17,90.09,16.6535]
[1645207716512,5.547,90.169,90.09,16.6535]
[1645207716712,5.547,90.176,90.09,16.6535]
[1645207717112,110.0,90.175,90.09,16.6535]
[1645207717312,110.0,90.173,90.09,16.6535]
[1645207717511,5.547,90.172,90.09,16.6535]
[1645207717712,110.0,90.175,90.09,16.6535]
[1645207717912,110.0,90.173,90.09,16.6535]
[1645207718112,5.547,90.172,90.09,16.6535]
[1645207718513,110.0,90.171,90.09,16.6535]
[1645207718715,110.0,90.169,90.071,24.3721]
[1645207718914,110.0,90.167,90.071,24.3721]
[1645207719113,22.556,90.166,90.071,24.3721]
[1645207719315,22.556,90.166,90.072,2.6293831]
[1645207719714,22.556,90.166,90.073,45.55710812]
[1645207720013,22.556,90.166,90.08,16.6554]
[1645207720433,22.556,90.166,90.081,2.6293831]
[1645207721215,110.0,90.165,90.081,2.6293831]
[1645207721415,110.0,90.165,90.073,45.55710812]
[1645207721614,110.0,90.163,90.073,45.55710812]
[1645207721814,110.0,90.161,90.071,24.3721]
[1645207722017,2.6293831,90.164,90.071,24.3721]
[1645207722018,110.0,90.159,90.071,24.3721]
[1645207722218,110.0,90.157,90.071,24.3721]
[1645207722414,110.0,90.155,90.071,24.3721]
[1645207722817,110.0,90.153,90.059,54.42490993]
[1645207723016,110.0,90.149,90.059,54.42490993]
[1645207723217,110.0,90.147,90.02,12.82]
[1645207723415,110.0,90.145,90.02,12.82]
[1645207723620,110.0,90.139,90.02,12.82]
[1645207723818,110.0,90.129,90.04,16.6624]
[1645207724019,110.0,90.127,90.04,16.6624]
[1645207724218,110.0,90.123,90.041,49.40859163]
[1645207725918,50.11246478,90.124,90.041,49.40859163]
[1645207726117,50.11246478,90.124,90.05,16.6622]
[1645207727617,50.11246478,90.124,90.051,2.6293831]
[1645207727817,50.11246478,90.124,90.05,16.6622]
[1645207728017,50.11246478,90.124,90.071,53.91913628]
[1645207728419,24.2045,90.138,90.071,53.91913628]
[1645207728620,1.51526859,90.153,90.072,112.6293831]
[1645207728820,1.51526859,90.161,90.072,2.6293831]
[1645207729022,1.51526859,90.164,90.073,49.8594831]
[1645207729219,1.51526859,90.163,90.073,49.8594831]
[1645207729420,42.23639284,90.162,90.073,49.8594831]
[1645207730023,42.23639284,90.162,90.081,110.0]
[1645207730223,42.23639284,90.162,90.083,110.0]
[1645207730423,42.23639284,90.162,90.087,110.0]
[1645207730623,42.23639284,90.162,90.089,110.0]
[1645207730822,42.23639284,90.162,90.084,2.6293831]
[1645207730823,110.0,90.161,90.084,2.6293831]
[1645207731022,115.548,90.161,90.089,2.6293831]
[1645207731223,115.548,90.161,90.043,2.6293831]
[1645207731431,1.51526859,90.157,90.043,2.6293831]
[1645207731625,1.51526859,90.157,90.05,12.82]
[1645207731827,1.51526859,90.157,90.074,46.321168]
[1645207732023,1.51526859,90.16,90.074,46.321168]
[1645207732425,1.51526859,90.159,90.074,46.321168]
[1645207732625,1.51526859,90.155,90.09,16.6551]
[1645207733023,1.51526859,90.152,90.09,16.6551]
[1645207733223,51.30800504,90.146,90.09,16.6551]
[1645207733424,110.0,90.145,90.04,12.82]
[1645207733623,1.51526859,90.138,90.04,12.82]
[1645207733825,1.51526859,90.136,90.031,16.8262]
[1645207734124,1.51526859,90.141,90.03,12.82]
[1645207734323,16.6573,90.14,90.08,16.6569]
[1645207734725,110.0,90.139,90.08,16.6569]
[1645207734926,111.51526859,90.139,90.08,16.6569]
[1645207735127,1.51526859,90.138,90.08,16.6569]
[1645207735743,1.51526859,90.137,90.08,16.6569]
[1645207736345,1.51526859,90.136,90.05,54.70772666]
[1645207736545,54.52525526,90.128,90.06,16.6594]
[1645207736747,1.51526859,90.123,90.06,16.6594]
[1645207736946,1.51526859,90.127,90.06,16.6594]
[1645207737144,56.04052385,90.128,90.06,16.6094]
[1645207737347,54.52525526,90.128,90.06,16.6094]
[1645207737546,24.4946,90.138,90.06,16.6094]
[1645207737750,1.51526859,90.146,90.061,116.0]
[1645207737946,1.51526859,90.16,90.08,16.6508]
[1645207738147,1.51526859,90.164,90.081,47.9469]
[1645207738346,1.51526859,90.165,90.081,50.5762831]
[1645207738545,38.90418348,90.163,90.082,47.78642085]
[1645207738746,38.90418348,90.163,90.09,55.498]
[1645207739146,38.90418348,90.163,90.1,16.6494]
[1645207739445,1.51526859,90.16,90.101,44.84821826]
[1645207740047,1.51526859,90.156,90.101,44.84821826]
[1645207740354,1.51526859,90.158,90.101,44.84821826]
[1645207741249,1.51526859,90.153,90.101,44.84821826]
[1645207741449,1.51526859,90.156,90.11,16.6502]
[1645207741646,38.90418348,90.163,90.11,16.6502]
[1645207741647,1.51526859,90.155,90.11,16.6502]
[1645207741847,1.51526859,90.154,90.11,16.6502]
[1645207742047,1.51526859,90.156,90.11,16.6502]
[1645207742648,1.51526859,90.158,90.11,16.6502]
[1645207743748,1.51526859,90.159,90.11,16.6502]
[1645207744149,1.51526859,90.164,90.11,16.6502]
[1645207744547,1.51526859,90.166,90.11,16.6502]
[1645207744949,48.02980435,90.165,90.11,16.6502]
[1645207745150,1.51526859,90.167,90.11,16.6502]
[1645207745350,1.51526859,90.167,90.111,0.25]
[1645207745552,1.51526859,90.175,90.11,29.4702]
[1645207745752,1.51526859,90.172,90.13,16.6453]
[1645207745954,1.51526859,90.17,90.13,16.6453]
[1645207746151,1.51526859,90.166,90.116,49.30555388]
[1645207746551,1.51526859,90.168,90.116,49.30555388]
[1645207746951,1.51526859,90.169,90.116,49.30555388]
[1645207747151,1.51526859,90.169,90.102,23.0819]
[1645207747354,111.51526859,90.167,90.064,22.6211]
[1645207747553,1.51526859,90.146,90.064,22.6211]
[1645207747751,1.51526859,90.146,90.062,24.4652]
[1645207747752,1.51526859,90.144,90.04,16.3946]
[1645207747953,5.549,90.145,90.033,16.9293]
[1645207747954,1.51526859,90.13,90.033,16.9293]
[1645207748154,38.86160576,90.129,90.07,16.6582]
[1645207748352,1.51526859,90.138,90.07,16.6582]
[1645207748353,18.17246859,90.14,90.07,16.6582]
[1645207748556,1.51526859,90.14,90.07,16.6582]
[1645207748753,1.51526859,90.123,90.07,16.6582]
[1645207748955,1.51526859,90.125,90.07,16.6582]
[1645207749254,1.51526859,90.125,90.034,39.12755805]
[1645207749255,1.51526859,90.125,90.035,23.4453]
[1645207749452,1.51526859,90.122,90.035,23.4453]
[1645207749654,56.5347942,90.124,90.035,23.4453]
[1645207749858,55.01952561,90.124,90.061,44.99147292]
[1645207751053,55.01952561,90.124,90.07,16.6586]
[1645207752257,110.0,90.123,90.061,44.99147292]
[1645207752656,1.51526859,90.119,90.061,44.99147292]
[1645207753461,55.01952561,90.124,90.061,44.99147292]
[1645207753660,110.0,90.123,90.061,44.99147292]
[1645207754260,55.01952561,90.124,90.061,44.99147292]
[1645207755161,55.01952561,90.124,90.04,55.5349]
[1645207755362,118.1793831,90.123,90.031,47.4515]
[1645207755562,118.1793831,90.123,89.995,5.7658801]
[1645207755563,1.51526859,90.112,90.0,12.82]
[1645207755764,1.51526859,90.1,89.998,46.5662]
[1645207755965,110.0,90.098,89.998,46.5662]
[1645207756163,161.08294627,90.096,89.999,47.9725513]
[1645207756361,110.0,90.094,89.999,47.9725513]
[1645207756562,110.0,90.092,89.999,47.9725513]
[1645207756762,110.0,90.09,89.999,47.9725513]
[1645207756962,110.0,90.088,90.021,54.77470894]
[1645207757163,110.0,90.086,90.021,54.77470894]
[1645207757564,115.551,90.086,90.021,54.77470894]
[1645207758164,115.551,90.086,90.01,16.6701]
[1645207758365,1.51526859,90.083,90.01,16.6701]
[1645207758567,110.0,90.081,90.01,16.6701]
[1645207758764,110.0,90.079,90.01,16.6701]
[1645207758964,110.0,90.077,90.01,16.6701]
[1645207759164,151.78405561,90.075,90.011,46.6380034]
[1645207759369,5.551,90.074,90.011,46.6380034]
[1645207759565,5.551,90.079,90.02,16.6682]
[1645207759763,1.51526859,90.088,90.02,16.6682]
[1645207759764,5.551,90.087,90.02,16.6682]
[1645207760168,5.551,90.09,90.02,16.6682]
[1645207760364,5.551,90.086,90.02,16.6682]
[1645207760566,5.551,90.098,90.02,16.6682]
[1645207760768,5.551,90.101,90.02,16.6682]
[1645207761170,5.551,90.103,90.02,16.6682]
[1645207761468,45.79325818,90.102,90.02,16.6682]
[1645207761688,5.551,90.101,90.04,16.6615]
[1645207761869,23.0093,90.104,90.04,16.6615]
[1645207762367,22.9799,90.109,90.04,16.6615]
[1645207762569,22.9799,90.109,90.041,49.83681378]
[1645207763070,22.9799,90.109,90.061,43.70434666]
[1645207763871,47.93013302,90.115,90.061,43.70434666]
[1645207764071,110.0,90.114,90.061,43.70434666]
[1645207764272,110.0,90.114,90.05,16.6624]
[1645207764476,47.93013302,90.115,90.02,55.5427]
[1645207764477,110.0,90.112,90.02,55.5427]
[1645207764674,110.0,90.11,90.0,24.1777]
[1645207764876,1.51526859,90.104,90.0,24.1777]
[1645207765074,1.51526859,90.1,90.0,24.1777]
[1645207765275,110.0,90.098,90.02,16.6682]
[1645207765574,1.51526859,90.093,90.015,43.69883085]
[1645207765774,110.0,90.096,90.015,43.69883085]
[1645207766475,110.0,90.098,90.015,43.69883085]
[1645207766776,110.0,90.098,90.02,16.6673]
[1645207767375,110.0,90.096,90.02,16.6673]
[1645207768074,110.0,90.094,90.02,16.6673]
[1645207768476,110.0,90.092,90.02,16.6673]
[1645207768777,110.0,90.09,90.02,16.6673]
[1645207768976,115.551,90.089,90.02,16.6673]
[1645207769598,2.6293831,90.093,90.02,16.6673]
[1645207769898,5.551,90.098,90.02,16.6673]
[1645207770298,208.2477996,90.099,90.02,16.6673]
[1645207770499,5.551,90.098,90.02,16.6673]
[1645207770700,208.2477996,90.099,90.02,16.6673]
[1645207771402,110.0,90.097,90.02,16.6673]
[1645207771600,110.0,90.095,90.02,16.6673]
[1645207771900,110.0,90.095,90.01,16.67]
[1645207772100,1.51526859,90.092,90.01,16.67]
[1645207772299,110.0,90.09,90.01,16.67]
[1645207772501,110.0,90.088,90.01,16.67]
[1645207772701,110.0,90.086,90.011,42.9130662]
[1645207772900,110.0,90.084,90.011,42.9130662]
[1645207773101,110.0,90.082,90.011,42.9130662]
[1645207773301,110.0,90.08,90.011,42.9130662]
[1645207773502,110.0,90.078,90.011,42.9130662]
[1645207773800,110.0,90.078,90.02,16.6687]
[1645207774201,40.45491212,90.085,90.02,16.6687]
[1645207774406,5.551,90.098,90.02,16.6687]
[1645207774602,47.3446,90.099,90.02,16.6687]
[1645207775404,52.78339456,90.11,90.021,110.0]
[1645207775603,52.78339456,90.11,90.04,16.6585]
[1645207775803,52.78339456,90.11,90.041,39.76539791]
[1645207776903,52.78339456,90.11,90.06,16.6576]
[1645207777203,52.78339456,90.11,90.061,54.58943451]
[1645207777603,1.51526859,90.118,90.061,54.58943451]
[1645207777803,1.51526859,90.128,90.061,54.58943451]
[1645207778103,1.51526859,90.132,90.061,54.58943451]
[1645207778303,1.51526859,90.132,90.07,16.6593]
[1645207778503,1.51526859,90.143,90.07,16.6593]
[1645207778703,53.5124794,90.149,90.071,47.2687]
[1645207779106,53.5124794,90.149,90.072,110.0]
[1645207780403,53.5124794,90.149,90.09,16.6509]
[1645207780606,53.5124794,90.149,90.091,43.72884202]
[1645207781211,53.5124794,90.149,90.071,47.2687]
[1645207781609,53.5124794,90.149,90.1,16.6492]
[1645207782607,53.5124794,90.149,90.08,16.6561]
[1645207782807,5.548,90.148,90.08,16.6561]
[1645207783107,110.0,90.147,90.08,16.6561]
[1645207783407,5.548,90.146,90.081,46.11722553]
[1645207783607,53.5124794,90.149,90.09,16.6555]
[1645207785708,5.548,90.148,90.09,16.6555]
[1645207785910,110.0,90.147,90.09,16.6555]
[1645207786208,110.0,90.145,90.08,16.6574]
[1645207786408,110.0,90.139,90.01,12.82]
[1645207786608,110.0,90.137,90.012,54.2229]
[1645207786810,110.0,90.124,90.013,51.65589883]
[1645207787007,110.0,90.119,90.02,55.5445]
[1645207787208,110.0,90.117,90.05,16.6599]
[1645207787408,110.0,90.115,90.02,55.5445]
[1645207787607,110.0,90.113,90.02,55.5445]
[1645207787810,110.0,90.111,90.02,55.5445]
[1645207788010,110.0,90.109,90.012,48.2229]
[1645207788211,110.0,90.107,90.02,16.6672]
[1645207788410,110.0,90.105,90.021,40.31366473]
[1645207788611,110.0,90.103,90.021,40.31366473]
[1645207788910,110.0,90.101,90.021,40.31366473]
[1645207789110,110.0,90.099,90.021,40.31366473]
[1645207789314,110.0,90.097,90.021,40.31366473]
[1645207789511,110.0,90.095,90.021,40.31366473]
[1645207789711,110.0,90.093,90.021,40.31366473]
[1645207789913,110.0,90.091,90.03,16.6669]
[1645207790213,110.0,90.089,90.03,16.6669]
[1645207790413,110.0,90.087,90.012,48.2229]
[1645207790614,110.0,90.085,90.012,48.2229]
[1645207790812,110.0,90.083,90.013,43.11330901]
[1645207791012,52.26851845,90.084,90.013,43.11330901]
[1645207791414,110.0,90.083,90.02,16.6685]
[1645207792014,52.26851845,90.084,90.02,16.6685]
[1645207792414,110.0,90.083,90.02,16.6685]
[1645207792617,52.26851845,90.084,90.02,16.6685]
[1645207793217,110.0,90.083,90.02,16.6685]
[1645207793419,52.26851845,90.084,90.02,16.6685]
[1645207797819,5.551,90.089,90.02,16.6685]
[1645207798022,24.0861,90.105,90.021,110.0]
[1645207798221,24.0861,90.105,90.04,16.6609]
[1645207798820,39.44908833,90.104,90.041,42.14933114]
[1645207799823,39.44908833,90.104,90.023,24.5483]
[1645207799824,39.44908833,90.104,90.05,16.6603]
[1645207800629,5.55,90.103,90.05,16.6603]
[1645207800828,5.55,90.103,90.024,39.73716031]
[1645207801026,5.55,90.103,90.04,16.6649]
[1645207801428,45.00008833,90.104,90.04,16.6649]
[1645207801627,39.44908833,90.104,90.04,16.6649]
[1645207803526,45.00008833,90.104,90.04,16.6649]
[1645207804528,39.44908833,90.104,90.04,16.6649]
[1645207804928,45.00008833,90.104,90.04,16.6649]
[1645207805129,110.0,90.103,90.04,16.6649]
[1645207805329,110.0,90.101,90.01,55.551]
[1645207805532,110.0,90.099,90.01,55.551]
[1645207805731,110.0,90.097,90.01,55.551]
[1645207805931,110.0,90.095,90.01,55.551]
[1645207806134,110.0,90.093,90.013,40.00889479]
[1645207806333,168.0751027,90.09,90.02,16.6685]
[1645207806531,5.551,90.089,90.02,16.6685]
[1645207807336,16.6686,90.08,90.02,16.6685]
[1645207807533,5.551,90.089,90.02,16.6685]
[1645207807733,41.4066027,90.09,90.02,16.6685]
[1645207809036,41.4066027,90.09,90.02,28.9885]
[1645207809434,5.551,90.116,90.02,28.9885]
[1645207809634,1.51526859,90.113,90.02,28.9885]
[1645207809837,1.51526859,90.116,90.02,28.9885]
[1645207810034,5.551,90.115,90.02,28.9885]
[1645207810234,1.51526859,90.113,90.02,28.9885]
[1645207810451,54.01376626,90.103,90.02,28.9885]
[1645207811054,54.01376626,90.103,90.04,16.6605]
[1645207811255,54.01376626,90.103,90.04,61.24591702]
[1645207812055,54.01376626,90.103,90.04,16.6605]
[1645207812256,112.6293831,90.102,90.04,16.6605]
[1645207812456,112.6293831,90.102,89.963,22.7847]
[1645207812457,1.51526859,90.095,89.963,22.7847]
[1645207812654,1.51526859,90.087,89.963,22.7847]
[1645207812854,5.551,90.086,89.963,22.7847]
[1645207813054,54.81086369,90.085,90.013,47.11238557]
[1645207813254,16.6688,90.08,90.013,47.11238557]
[1645207813456,5.551,90.084,90.02,16.6673]
[1645207813655,54.81086369,90.085,90.02,16.6673]
[1645207814059,8.1803831,90.084,90.02,16.6673]
[1645207814257,1.51526859,90.077,89.996,22.9079]
[1645207814457,126.6699,90.07,90.01,16.6693]
[1645207814658,5.553,90.069,90.01,16.6693]
[1645207815162,42.44120675,90.068,90.011,44.86930312]
[1645207815357,5.553,90.067,90.011,44.86930312]
[1645207815657,16.6719,90.06,90.0,16.671]
[1645207815858,16.6719,90.06,89.97,55.5713]
[1645207815859,110.0,90.058,89.97,55.5713]
[1645207816058,110.0,90.058,89.963,23.7853]
[1645207816259,5.553,90.057,89.963,23.7853]
[1645207816458,114.14465169,90.057,89.964,23.0117]
[1645207816658,110.0,90.051,89.973,46.87660439]
[1645207816859,117.06826859,90.05,89.973,46.87660439]
[1645207817060,126.6764,90.04,89.98,16.6749]
[1645207817259,5.554,90.039,89.98,16.6749]
[1645207818064,153.12894045,90.038,89.98,16.6749]
[1645207818261,110.0,90.029,89.97,16.6778]
[1645207818459,16.6778,90.03,89.97,16.6778]
[1645207818460,110.0,90.027,89.97,16.6778]
[1645207818661,5.554,90.026,89.95,55.5839]
[1645207818863,110.0,90.025,89.95,55.5839]
[1645207819061,110.0,90.023,89.95,55.5839]
[1645207819263,60.2360771,90.024,89.96,16.6797]
[1645207819463,60.2360771,90.024,89.96,68.02379202]
[1645207820066,60.2360771,90.024,89.96,16.6797]
[1645207822067,110.0,90.019,89.95,16.6817]
[1645207822268,110.0,90.017,89.95,16.6817]
[1645207822471,110.0,90.015,89.95,16.6817]
[1645207822669,110.0,90.013,89.95,16.6817]
[1645207823170,5.556,90.012,89.951,52.97015631]
[1645207823371,42.47375401,90.01,89.96,16.68]
[1645207823569,152.47375401,90.01,89.96,16.68]
[1645207823768,110.0,90.008,89.904,22.8467]
[1645207823972,110.0,90.006,89.905,24.1567]
[1645207824168,5.558,90.005,89.906,110.0]
[1645207824368,5.558,90.008,89.906,112.6293831]
[1645207824568,5.558,90.022,89.92,16.6861]
[1645207824966,5.558,90.022,89.921,2.6293831]
[1645207825166,5.558,90.022,89.94,55.5976]
[1645207825367,164.50371586,90.021,89.941,49.5758688]
[1645207825569,110.0,90.019,89.95,16.6793]
[1645207825870,110.0,90.017,89.95,16.6793]
[1645207826069,5.556,90.016,89.95,16.6793]
[1645207826268,5.556,90.02,89.95,16.6793]
[1645207827069,2.6293831,90.019,89.95,16.6793]
[1645207827269,5.556,90.018,89.95,16.6793]
[1645207827669,2.6293831,90.017,89.95,16.6793]
[1645207827868,5.556,90.016,89.95,16.6793]
[1645207828872,54.50371586,90.021,89.95,19.3086831]
[1645207831077,54.50371586,90.021,89.95,16.6793]
[1645207833276,5.556,90.035,89.97,16.6749]
[1645207834278,52.10116776,90.034,89.971,43.0190213]
[1645207834480,5.555,90.033,89.97,16.6749]
[1645207834682,110.0,90.032,89.97,16.6749]
[1645207834884,110.0,90.03,89.97,16.6749]
[1645207835077,110.0,90.028,89.97,16.6749]
[1645207835278,5.555,90.027,89.97,16.6749]
[1645207835478,5.555,90.027,89.971,40.09180726]
[1645207835683,2.6293831,90.031,89.971,40.09180726]
[1645207835684,5.555,90.033,89.98,16.6759]
[1645207836180,5.555,90.059,89.98,16.6759]
[1645207836382,5.554,90.073,89.981,2.6293831]
[1645207836677,5.553,90.079,90.01,16.6688]
[1645207836880,5.551,90.088,90.01,16.6688]
[1645207837080,41.37710747,90.087,90.011,42.54686476]
[1645207837979,41.37710747,90.087,90.03,16.6646]
[1645207839784,110.0,90.086,90.012,23.6957]
[1645207839982,110.0,90.084,90.02,16.6684]
[1645207840182,110.0,90.082,90.02,16.6684]
[1645207840483,110.0,90.08,90.02,16.6684]
[1645207841489,2.6293831,90.079,90.02,16.6684]
[1645207842190,1.51526859,90.074,89.971,24.3845]
[1645207842386,110.0,90.059,89.971,24.3845]
[1645207842585,110.0,90.057,89.971,24.3845]
[1645207842788,110.0,90.055,89.971,24.3845]
[1645207842984,110.0,90.053,89.972,51.1482834]
[1645207843185,110.0,90.051,89.972,51.1482834]
[1645207843487,2.6293831,90.073,89.99,16.6741]
[1645207843785,110.0,90.08,89.99,16.6741]
[1645207843984,110.0,90.078,89.99,16.6741]
[1645207844211,49.84521029,90.075,89.991,44.94459347]
[1645207844384,49.84521029,90.075,90.01,16.6681]
[1645207844585,49.84521029,90.075,90.011,52.78723533]
[1645207845585,49.84521029,90.075,90.03,16.6667]
[1645207849089,110.0,90.105,90.03,16.6667]
[1645207849299,110.0,90.103,90.03,16.6667]